bitfinex/quotes_BTCUSD_20230905
["timestamp","ask_amount","ask_price","bid_price","bid_amount"]
[1693883975903,0.15117649,25631.0,25630.0,1.04790227]
[1693883976166,0.15117649,25631.0,25630.0,0.93548111]
[1693883976371,0.15117649,25631.0,25630.0,0.94352111]
[1693883976577,0.15117649,25631.0,25630.0,0.94244111]
[1693883976776,0.15117649,25631.0,25630.0,0.94184111]
[1693883976975,0.15117649,25631.0,25630.0,1.02702111]
[1693883977128,0.15117649,25631.0,25630.0,1.02666111]
[1693883977330,0.15117649,25631.0,25630.0,1.02906111]
[1693883977532,0.15117649,25631.0,25630.0,1.02510111]
[1693883977752,0.15117649,25631.0,25630.0,1.02486111]
[1693883977975,0.15117649,25631.0,25630.0,1.02270111]
[1693883978305,0.15117649,25631.0,25630.0,1.01423339]
[1693883978505,0.15117649,25631.0,25630.0,1.01399339]
[1693883978657,0.15117649,25631.0,25630.0,1.01591339]
[1693883978865,0.15117649,25631.0,25630.0,1.01531339]
[1693883979101,0.15117649,25631.0,25630.0,1.01831339]
[1693883979288,0.15117649,25631.0,25630.0,1.01795339]
[1693883979491,0.15117649,25631.0,25630.0,1.01783339]
[1693883979816,0.15117649,25631.0,25630.0,1.01471339]
[1693883979963,0.15117649,25631.0,25630.0,1.01339339]
[1693883980309,0.15117649,25631.0,25630.0,1.01279339]
[1693883980547,0.15117649,25631.0,25630.0,1.33908739]
[1693883980823,0.15117649,25631.0,25630.0,1.33224739]
[1693883980958,0.18053356,25631.0,25630.0,1.33620739]
[1693883981171,0.18053356,25631.0,25630.0,1.66178139]
[1693883981172,0.02935707,25631.0,25630.0,1.66178139]
[1693883981371,0.02935707,25631.0,25630.0,1.65998139]
[1693883981618,0.02935707,25631.0,25630.0,1.65218139]
[1693883981797,0.02935707,25631.0,25630.0,1.32864739]
[1693883981992,0.02935707,25631.0,25630.0,1.32792739]
[1693883982195,0.02935707,25631.0,25630.0,1.32840739]
[1693883982845,0.02935707,25631.0,25630.0,1.32816739]
[1693883983039,0.02935707,25631.0,25630.0,1.32924739]
[1693883983241,0.02935707,25631.0,25630.0,1.32864739]
[1693883983479,0.02935707,25631.0,25630.0,1.32840739]
[1693883983674,0.02935707,25631.0,25630.0,1.32600739]
[1693883983808,0.02935707,25631.0,25630.0,1.32000739]
[1693883984215,0.17548997,25631.0,25630.0,1.16892739]
[1693883984423,0.02935707,25631.0,25630.0,0.30181]
[1693883984620,0.02935707,25631.0,25630.0,0.28243]
[1693883984621,1.02935707,25631.0,25630.0,0.28243]
[1693883984747,0.16232781,25631.0,25630.0,0.28951]
[1693883984959,0.16232781,25631.0,25630.0,0.28555]
[1693883985158,1.80966207,25631.0,25629.0,0.0945]
[1693883985375,2.58996707,25631.0,25629.0,0.08448]
[1693883985574,1.58996707,25631.0,25630.0,0.07014]
[1693883985770,2.0,25630.0,25629.0,0.08424]
[1693883985999,2.0,25630.0,25629.0,0.08184]
[1693883986339,1.12189823,25630.0,25629.0,0.07962]
[1693883986542,1.12189823,25630.0,25629.0,0.07998]
[1693883986774,1.12189823,25630.0,25629.0,0.14174083]
[1693883986951,1.780335,25630.0,25629.0,0.07626]
[1693883987162,0.780335,25630.0,25629.0,0.07938]
[1693883987359,0.780335,25630.0,25629.0,0.07932]
[1693883987592,2.426305,25630.0,25629.0,0.06678]
[1693883987797,2.446305,25630.0,25625.0,0.38172]
[1693883988013,0.0853,25626.0,25624.0,0.00398036]
[1693883988215,0.3349,25629.0,25625.0,1.01103427]
[1693883988371,0.78041,25628.0,25624.0,0.41569948]
[1693883988531,1.029981,25629.0,25624.0,0.41569948]
[1693883988532,1.810367,25629.0,25624.0,0.397496]
[1693883988731,1.810367,25629.0,25625.0,0.414488]
[1693883988935,0.10798154,25628.0,25625.0,0.409508]
[1693883989154,0.26488154,25628.0,25626.0,0.08316]
[1693883989370,0.26488154,25628.0,25626.0,0.08358]
[1693883989564,0.26488154,25628.0,25627.0,0.06792]
[1693883989771,0.26488154,25628.0,25625.0,0.702676]
[1693883989999,0.26488154,25628.0,25625.0,0.391388]
[1693883990150,0.26488154,25628.0,25625.0,0.392288]
[1693883990350,0.26488154,25628.0,25625.0,0.705443]
[1693883990620,0.27788154,25628.0,25626.0,0.06664]
[1693883990778,0.26488154,25628.0,25626.0,0.06588]
[1693883990978,0.26488154,25628.0,25626.0,0.06654]
[1693883991180,0.26488154,25628.0,25626.0,0.378722]
[1693883991438,0.12572435,25627.0,25626.0,0.379022]
[1693883991653,0.12572435,25627.0,25626.0,0.379382]
[1693883991866,0.12572435,25627.0,25626.0,0.378962]
[1693883992054,0.12572435,25627.0,25626.0,0.379442]
[1693883992257,0.12572435,25627.0,25626.0,0.379562]
[1693883992426,0.12572435,25627.0,25626.0,0.379922]
[1693883992633,0.13872435,25627.0,25626.0,0.381042]
[1693883992799,0.13872435,25627.0,25626.0,0.381462]
[1693883992994,0.13872435,25627.0,25626.0,0.381582]
[1693883993200,0.13872435,25627.0,25626.0,0.381222]
[1693883993409,0.13872435,25627.0,25626.0,0.695444]
[1693883993615,0.13872435,25627.0,25626.0,1.046826]
[1693883993817,0.022,25627.0,25626.0,1.247906]
[1693883994020,0.022,25627.0,25626.0,1.244846]
[1693883994223,0.022,25627.0,25626.0,1.244786]
[1693883994430,0.022,25627.0,25626.0,1.248026]
[1693883994643,0.022,25627.0,25626.0,1.247906]
[1693883994842,0.022,25627.0,25626.0,1.247966]
[1693883995130,0.022,25627.0,25626.0,1.248746]
[1693883995336,0.022,25627.0,25626.0,1.72219127]
[1693883995542,0.022,25627.0,25626.0,2.15490278]
[1693883995775,0.022,25627.0,25626.0,2.15706278]
[1693883995978,0.022,25627.0,25626.0,2.15388278]
[1693883996180,0.04997138,25627.0,25626.0,2.15400278]
[1693883996384,0.04997138,25627.0,25626.0,2.15316278]
[1693883996492,0.04997138,25627.0,25626.0,2.15310278]
[1693883996694,0.04997138,25627.0,25626.0,1.95980278]
[1693883996896,0.04997138,25627.0,25626.0,1.95818278]
[1693883997126,0.02797138,25627.0,25626.0,2.36048278]
[1693883997328,0.02797138,25627.0,25626.0,2.35784278]
[1693883997548,0.13053598,25628.0,25626.0,1.84245127]
[1693883997748,0.13053598,25628.0,25627.0,0.02]
[1693883997951,0.13053598,25628.0,25627.0,0.40639]
[1693883998155,0.13053598,25628.0,25627.0,0.40579]
[1693883998363,0.13053598,25628.0,25627.0,0.40609]
[1693883998562,0.13053598,25628.0,25627.0,0.38477]
[1693883998764,0.930537,25630.0,25627.0,0.0672]
[1693883999027,1.710888,25630.0,25626.0,1.103537]
[1693883999196,0.12452808,25627.0,25626.0,1.102177]
[1693883999402,0.12452808,25627.0,25626.0,1.123317]
[1693883999686,0.12452808,25627.0,25626.0,1.472999]
[1693883999687,0.002,25627.0,25626.0,1.472999]
[1693883999884,0.002,25627.0,25626.0,0.51526]
[1693884000091,0.9256927,25629.0,25626.0,0.45316]
[1693884000290,0.9256927,25629.0,25626.0,0.789882]
[1693884000291,0.002,25627.0,25626.0,0.789882]
[1693884000519,0.002,25627.0,25626.0,0.71089772]
[1693884000724,0.003,25627.0,25626.0,0.72889772]
[1693884000948,0.003,25627.0,25625.0,0.644372]
[1693884000949,0.1902,25630.0,25623.0,0.39009319]
[1693884001314,0.0853,25624.0,25621.0,1.03510584]
[1693884001538,0.9559319,25627.0,25623.0,0.06726]
[1693884001539,1.646252,25626.0,25623.0,0.06726]
[1693884001748,0.78049,25625.0,25622.0,0.31222]
[1693884001952,0.78049,25625.0,25622.0,0.39394]
[1693884002161,0.13708115,25624.0,25622.0,0.31222]
[1693884003610,0.13808115,25624.0,25622.0,0.32222]
[1693884003812,0.29598115,25624.0,25622.0,0.32222]
[1693884003945,0.29598115,25624.0,25622.0,0.5794905]
[1693884004543,0.29598115,25624.0,25622.0,0.5824905]
[1693884004748,0.02992206,25623.0,25622.0,0.5824905]
[1693884005122,0.02992206,25623.0,25622.0,0.8824905]
[1693884005610,0.02992206,25623.0,25622.0,0.8724905]
[1693884006454,0.03092206,25623.0,25622.0,0.8824905]
[1693884006657,0.03092206,25623.0,25622.0,0.8794905]
[1693884007235,0.03092206,25623.0,25622.0,0.8824905]
[1693884007647,0.1540863,25623.0,25622.0,0.8824905]
[1693884007847,0.1540863,25623.0,25622.0,0.313]
[1693884008057,0.1540863,25623.0,25622.0,0.013]
[1693884009291,0.9346343,25623.0,25622.0,0.013]
[1693884009913,2.4957303,25623.0,25622.0,0.013]
[1693884010131,2.49786606,25623.0,25622.0,0.013]
[1693884010542,2.49786606,25623.0,25622.0,0.01]
[1693884010752,2.49686606,25623.0,25617.0,0.312288]
[1693884010968,2.49686606,25623.0,25622.0,0.001]
[1693884010969,2.41756606,25623.0,25622.0,0.001]
[1693884011181,2.49686606,25623.0,25615.0,1.01476219]
[1693884011405,0.0853,25620.0,25616.0,0.3]
[1693884011608,2.342027,25619.0,25616.0,0.3]
[1693884011959,2.37157397,25619.0,25616.0,0.3]
[1693884012187,2.37157397,25619.0,25616.0,0.22298959]
[1693884012587,0.10999983,25618.0,25616.0,0.22298959]
[1693884012810,1.67141883,25618.0,25616.0,0.22398959]
[1693884013231,1.67141883,25618.0,25616.0,0.06636043]
[1693884013438,1.67141883,25618.0,25616.0,0.001]
[1693884013634,1.67141883,25618.0,25615.0,0.09358653]
[1693884013959,1.67741883,25618.0,25616.0,0.002]
[1693884014509,1.82621883,25618.0,25616.0,0.001]
[1693884015065,1.82621883,25618.0,25615.0,0.003]
[1693884015291,0.11080009,25617.0,25615.0,0.003]
[1693884015514,0.11080009,25617.0,25615.0,0.313]
[1693884016143,0.11080009,25617.0,25615.0,0.303]
[1693884016347,0.26660009,25617.0,25615.0,0.31]
[1693884016751,0.26660009,25617.0,25616.0,0.001]
[1693884016969,0.04,25616.0,25615.0,0.01]
[1693884017179,2.0978059,25616.0,25615.0,0.01]
[1693884017391,2.85423127,25616.0,25615.0,0.013]
[1693884017602,2.85423127,25616.0,25615.0,0.01]
[1693884018230,2.85423127,25616.0,25611.0,0.15025757]
[1693884018436,0.0853,25615.0,25611.0,0.15025757]
[1693884018650,1.561658,25614.0,25611.0,0.15025757]
[1693884018885,2.342487,25614.0,25611.0,0.15025757]
[1693884019065,2.342487,25614.0,25610.0,0.624752]
[1693884019267,2.36682363,25614.0,25610.0,0.624752]
[1693884019477,2.342487,25614.0,25610.0,0.624752]
[1693884020022,2.343487,25614.0,25611.0,0.01]
[1693884020226,2.344487,25614.0,25611.0,0.01]
[1693884020642,0.15042288,25613.0,25611.0,0.01]
[1693884020820,0.93128788,25613.0,25611.0,0.01]
[1693884021176,0.93128788,25613.0,25611.0,0.014]
[1693884021380,1.31793315,25613.0,25611.0,0.014]
[1693884021582,2.96495115,25613.0,25611.0,0.004]
[1693884021783,3.11615115,25613.0,25611.0,0.004]
[1693884022593,3.11615115,25613.0,25609.0,0.16285528]
[1693884022790,3.11615115,25613.0,25611.0,0.014]
[1693884022791,3.11815115,25613.0,25611.0,0.014]
[1693884023207,0.12123153,25612.0,25611.0,0.014]
[1693884023383,2.46388053,25612.0,25611.0,0.014]
[1693884024058,2.46388053,25612.0,25611.0,0.01]
[1693884024258,2.46388053,25612.0,25609.0,0.019695]
[1693884024509,2.70938053,25612.0,25611.0,0.014]
[1693884024939,2.74938053,25612.0,25611.0,0.014]
[1693884025168,2.74338053,25612.0,25611.0,0.004]
[1693884025370,2.74538053,25612.0,25611.0,0.004]
[1693884025905,2.74238053,25612.0,25609.0,0.019695]
[1693884026116,2.74438053,25612.0,25609.0,0.038695]
[1693884026329,2.92928015,25612.0,25611.0,0.01]
[1693884026715,2.95328015,25612.0,25611.0,0.012]
[1693884026886,2.92928015,25612.0,25611.0,0.01]
[1693884027581,2.94328015,25612.0,25611.0,0.01]
[1693884027999,3.32892542,25612.0,25609.0,0.021695]
[1693884028181,0.38664527,25611.0,25609.0,0.022695]
[1693884028410,0.780944,25610.0,25609.0,0.022695]
[1693884028842,0.780944,25610.0,25609.0,0.021695]
[1693884029509,0.780944,25610.0,25609.0,0.019695]
[1693884029705,0.787944,25610.0,25609.0,0.020695]
[1693884030693,0.801944,25610.0,25609.0,0.022695]
[1693884034139,1.582888,25610.0,25609.0,0.022695]
[1693884034564,4.0313965,25610.0,25609.0,0.022695]
[1693884035235,4.11573313,25610.0,25609.0,0.022695]
[1693884035442,4.11573313,25610.0,25609.0,0.021695]
[1693884035443,4.44337584,25610.0,25609.0,0.021695]
[1693884035667,4.4043965,25610.0,25609.0,0.021695]
[1693884035882,4.14319332,25610.0,25609.0,0.022695]
[1693884036093,1.77468482,25610.0,25609.0,0.022695]
[1693884036518,1.77468482,25610.0,25609.0,0.020695]
[1693884036519,2.408832,25610.0,25609.0,0.020695]
[1693884036726,2.53578189,25610.0,25609.0,0.021695]
[1693884036934,2.80747727,25610.0,25609.0,0.021695]
[1693884037145,2.91095584,25610.0,25609.0,0.019695]
[1693884037361,0.088,25610.0,25609.0,0.022695]
[1693884037579,1.649888,25610.0,25609.0,0.022695]
[1693884037995,1.649888,25610.0,25609.0,0.020695]
[1693884037996,1.625888,25610.0,25609.0,0.020695]
[1693884038206,0.868944,25610.0,25609.0,0.022695]
[1693884038624,0.048,25610.0,25609.0,0.3697309]
[1693884039079,0.048,25610.0,25609.0,0.8394209]
[1693884039314,0.048,25610.0,25609.0,0.97431107]
[1693884039532,1.69958354,25615.0,25609.0,0.97431107]
[1693884039533,0.156216,25620.0,25609.0,1.60646838]
[1693884039774,0.12888917,25624.0,25617.0,0.02]
[1693884040003,0.22904401,25623.0,25619.0,0.956801]
[1693884040224,0.14550133,25623.0,25622.0,0.0853]
[1693884040433,1.560993,25625.0,25622.0,0.23995811]
[1693884040643,0.12923739,25623.0,25622.0,0.0853]
[1693884041050,0.12923739,25623.0,25622.0,1.21006383]
[1693884041256,0.15608769,25623.0,25622.0,1.21006383]
[1693884041475,0.0258503,25623.0,25622.0,1.21006383]
[1693884042097,0.90347317,25625.0,25622.0,1.21006383]
[1693884042305,0.012,25623.0,25622.0,0.0863]
[1693884042714,0.012,25623.0,25622.0,1.21103317]
[1693884042931,2.0020779,25623.0,25622.0,1.12773317]
[1693884043157,2.0020779,25623.0,25614.0,0.17057071]
[1693884043158,0.02,25616.0,25614.0,0.17057071]
[1693884043356,1.60592063,25615.0,25610.0,0.1075344]
[1693884043570,1.60592063,25615.0,25609.0,0.332077]
[1693884043571,2.1439659,25615.0,25611.0,1.12499494]
[1693884043781,2.1439659,25615.0,25612.0,1.12499494]
[1693884043782,0.2587,25614.0,25612.0,1.12499494]
[1693884044005,0.2587,25614.0,25609.0,0.64446]
[1693884044006,0.780853,25613.0,25609.0,0.64446]
[1693884044220,0.02433663,25612.0,25609.0,0.86880667]
[1693884044441,0.02433663,25612.0,25610.0,0.012]
[1693884044658,1.718621,25613.0,25610.0,0.037]
[1693884044862,1.718621,25613.0,25610.0,0.325]
[1693884045073,1.718621,25613.0,25610.0,0.3]
[1693884045306,0.02,25611.0,25607.0,0.624818]
[1693884045518,0.02,25611.0,25609.0,0.016]
[1693884045519,1.60623863,25610.0,25609.0,0.016]
[1693884045750,2.90639827,25610.0,25609.0,0.016]
[1693884046175,3.01646795,25610.0,25609.0,0.016]
[1693884046407,1.84887168,25610.0,25609.0,0.016]
[1693884046617,0.28696968,25610.0,25609.0,0.012]
[1693884046823,0.28696968,25610.0,25607.0,0.738715]
[1693884047040,0.1769,25610.0,25607.0,0.426307]
[1693884047253,0.981845,25610.0,25609.0,0.001]
[1693884047465,1.10168843,25610.0,25609.0,0.001]
[1693884047904,1.12068843,25610.0,25609.0,0.002]
[1693884048105,1.09668843,25610.0,25609.0,0.002]
[1693884048325,1.10368843,25610.0,25609.0,0.002]
[1693884048750,1.88463343,25610.0,25609.0,0.002]
[1693884048967,1.10368843,25610.0,25609.0,0.002]
[1693884049180,0.32274343,25610.0,25609.0,0.002]
[1693884049603,0.31574343,25610.0,25609.0,0.002]
[1693884049818,1.09668743,25610.0,25609.0,0.002]
[1693884050271,2.562732,25610.0,25609.0,0.003]
[1693884050474,2.602732,25610.0,25609.0,0.003]
[1693884050918,2.98937727,25610.0,25609.0,0.003]
[1693884052190,3.18756463,25610.0,25609.0,0.003]
[1693884052404,2.98937727,25610.0,25609.0,0.003]
[1693884053339,2.97037727,25610.0,25609.0,0.001]
[1693884053679,2.95937727,25610.0,25609.0,0.002]
[1693884053891,2.98337727,25610.0,25609.0,0.002]
[1693884054129,2.96737727,25610.0,25604.0,0.02182282]
[1693884054313,0.6597819,25609.0,25604.0,0.02182282]
[1693884054520,0.02,25607.0,25604.0,0.02182282]
[1693884054723,0.02,25607.0,25604.0,0.3856983]
[1693884054935,0.02,25607.0,25605.0,0.13291779]
[1693884055817,0.02,25607.0,25604.0,0.33427182]
[1693884055997,0.801036,25607.0,25604.0,0.34427182]
[1693884056214,0.801036,25607.0,25604.0,0.03282282]
[1693884056215,2.363108,25607.0,25604.0,0.03282282]
[1693884056424,0.02557707,25606.0,25604.0,0.03182282]
[1693884056642,0.80577349,25606.0,25604.0,0.02182282]
[1693884056853,0.80577349,25606.0,25605.0,0.002]
[1693884057023,0.97087349,25606.0,25605.0,0.002]
[1693884057206,0.97087349,25606.0,25604.0,0.02182282]
[1693884057409,1.75195549,25606.0,25604.0,0.02282282]
[1693884057627,1.75295549,25606.0,25604.0,0.03182282]
[1693884058352,0.97187349,25606.0,25604.0,0.03182282]
[1693884058507,0.19079149,25606.0,25604.0,0.24237623]
[1693884058708,0.19079149,25606.0,25605.0,0.17221967]
[1693884058911,0.19079149,25606.0,25605.0,0.02423762]
[1693884059117,0.19579149,25606.0,25605.0,0.02423762]
[1693884059319,0.19079149,25606.0,25605.0,0.02423762]
[1693884059519,0.18979149,25606.0,25605.0,0.02423762]
[1693884059717,0.19079149,25606.0,25605.0,0.02423762]
[1693884059919,0.18979149,25606.0,25605.0,0.02623762]
[1693884060554,0.19479149,25606.0,25605.0,0.002]
[1693884060773,0.97485749,25606.0,25605.0,0.002]
[1693884061629,0.99485749,25606.0,25605.0,0.002]
[1693884061818,2.55698949,25606.0,25605.0,0.002]
[1693884062252,1.77592349,25606.0,25605.0,0.002]
[1693884063654,2.55698949,25606.0,25605.0,0.002]
[1693884063912,2.98363476,25606.0,25605.0,0.002]
[1693884064391,3.55531888,25606.0,25605.0,0.002]
[1693884064615,3.53098225,25606.0,25605.0,0.002]
[1693884064824,3.21753476,25606.0,25605.0,0.002]
[1693884065283,3.10363476,25606.0,25605.0,0.002]
[1693884065490,2.99863476,25606.0,25604.0,0.02182282]
[1693884065714,1.85892349,25606.0,25605.0,0.002]
[1693884065920,0.27679149,25606.0,25605.0,0.082]
[1693884066132,0.27679149,25606.0,25605.0,0.30695383]
[1693884066133,0.21279149,25606.0,25605.0,0.30695383]
[1693884066346,0.21279149,25606.0,25605.0,1.63516794]
[1693884066556,0.21279149,25606.0,25605.0,1.15763183]
[1693884066764,0.18879149,25606.0,25605.0,1.15301183]
[1693884066999,0.2131,25606.0,25605.0,0.54600122]
[1693884067277,0.21430581,25606.0,25605.0,0.43210122]
[1693884067533,0.21430581,25606.0,25605.0,0.102]
[1693884067945,0.21430581,25606.0,25605.0,0.22553956]
[1693884068128,0.21430581,25606.0,25605.0,0.53797756]
[1693884068407,0.19030581,25606.0,25605.0,0.53597756]
[1693884068701,0.21530581,25606.0,25605.0,1.05805556]
[1693884069167,0.19230581,25606.0,25605.0,1.06633556]
[1693884069168,0.19030581,25606.0,25605.0,1.04685556]
[1693884069606,0.19530581,25606.0,25605.0,0.16826]
[1693884069609,0.19530581,25606.0,25605.0,0.101]
[1693884069954,0.19030581,25606.0,25605.0,0.32556446]
[1693884070152,0.19130581,25606.0,25605.0,0.64800246]
[1693884070422,0.19230581,25606.0,25605.0,0.96044046]
[1693884070655,0.19230581,25606.0,25605.0,1.121474]
[1693884070908,0.19230581,25606.0,25605.0,1.80225869]
[1693884071144,0.1671,25606.0,25605.0,1.80027869]
[1693884071353,0.1671,25606.0,25605.0,1.80057869]
[1693884071575,0.19230671,25606.0,25605.0,1.80345869]
[1693884071798,0.19230671,25606.0,25605.0,1.80435869]
[1693884071976,0.19230671,25606.0,25605.0,1.80459869]
[1693884072201,0.19230671,25606.0,25605.0,1.80477869]
[1693884072392,0.19230671,25606.0,25605.0,1.80507869]
[1693884072831,0.19230671,25606.0,25605.0,1.78737869]
[1693884073034,0.19230671,25606.0,25605.0,1.78395869]
[1693884073261,0.19230671,25606.0,25605.0,1.78431869]
[1693884073482,0.19230671,25606.0,25605.0,1.78455869]
[1693884073690,0.19230671,25606.0,25605.0,1.78293869]
[1693884073896,0.02720671,25606.0,25605.0,1.78311869]
[1693884074106,0.02720671,25606.0,25605.0,0.11]
[1693884074712,0.02720671,25606.0,25605.0,0.422438]
[1693884074917,0.02720671,25606.0,25605.0,0.65042872]
[1693884075054,0.02720671,25606.0,25605.0,0.96286672]
[1693884075257,0.02720671,25606.0,25605.0,1.34142472]
[1693884075453,0.02720671,25606.0,25605.0,0.734876]
[1693884076504,0.02720671,25606.0,25605.0,0.422438]
[1693884076696,0.02720671,25606.0,25605.0,0.11]
[1693884077137,1.58933871,25606.0,25605.0,0.11]
[1693884078186,1.60933871,25606.0,25605.0,0.11]
[1693884078865,1.60933871,25606.0,25605.0,0.09]
[1693884079086,0.82827271,25606.0,25605.0,0.11]
[1693884079297,0.04720671,25606.0,25605.0,0.11]
[1693884079931,0.80827271,25606.0,25605.0,0.03]
[1693884080130,2.81704998,25606.0,25605.0,0.01]
[1693884080576,2.43040471,25606.0,25605.0,0.01]
[1693884081009,1.64933871,25606.0,25605.0,0.01]
[1693884081437,0.08720671,25606.0,25605.0,0.01]
[1693884082476,2.43040471,25606.0,25605.0,0.01]
[1693884082702,2.81704998,25606.0,25605.0,0.01]
[1693884083732,0.08620671,25606.0,25604.0,0.31227554]
[1693884083951,0.86727271,25606.0,25604.0,0.31227554]
[1693884084181,0.86627271,25606.0,25605.0,0.001]
[1693884084417,1.66133871,25606.0,25605.0,0.001]
[1693884084631,1.81343871,25606.0,25604.0,0.10182282]
[1693884084845,2.57450471,25606.0,25604.0,0.10282282]
[1693884085277,2.57450471,25606.0,25604.0,0.10182282]
[1693884085616,2.58250471,25606.0,25605.0,0.001]
[1693884086426,2.56850471,25606.0,25605.0,0.001]
[1693884086833,2.56050471,25606.0,25604.0,0.10182282]
[1693884087059,2.56550471,25606.0,25604.0,0.10282282]
[1693884087439,2.56050471,25606.0,25604.0,0.10282282]
[1693884087638,1.79343871,25606.0,25604.0,0.10282282]
[1693884087871,0.23130671,25606.0,25604.0,0.27996197]
[1693884088174,0.03920671,25606.0,25605.0,0.60461488]
[1693884088428,0.03920671,25606.0,25605.0,0.98365288]
[1693884088670,0.03920671,25606.0,25605.0,0.67553488]
[1693884088911,0.02520671,25606.0,25605.0,0.412438]
[1693884089139,0.02520671,25606.0,25605.0,0.1]
[1693884089402,1.602026,25608.0,25605.0,0.1]
[1693884089647,0.02959108,25606.0,25605.0,0.1]
[1693884089908,1.602026,25608.0,25605.0,0.6708819]
[1693884089909,0.04,25608.0,25605.0,0.6708819]
[1693884090158,0.2982,25609.0,25608.0,0.06]
[1693884090651,1.079175,25609.0,25608.0,0.06]
[1693884091793,1.86015,25609.0,25608.0,0.06]
[1693884092282,3.36997367,25609.0,25607.0,0.06]
[1693884092283,3.36997367,25609.0,25606.0,0.06]
[1693884092284,3.39397367,25609.0,25606.0,0.06]
[1693884092491,0.38664527,25608.0,25606.0,0.08]
[1693884092697,2.343108,25607.0,25606.0,0.08]
[1693884092901,2.343108,25607.0,25604.0,0.02182282]
[1693884093336,2.343108,25607.0,25605.0,0.02]
[1693884093542,2.504208,25607.0,25605.0,0.02]
[1693884093741,2.544208,25607.0,25606.0,0.002]
[1693884093968,2.544208,25607.0,25605.0,0.02]
[1693884094513,2.552208,25607.0,25605.0,0.021]
[1693884095364,0.04,25606.0,25605.0,0.001]
[1693884095592,2.383198,25606.0,25605.0,0.001]
[1693884096288,2.383198,25606.0,25604.0,0.04182282]
[1693884096486,2.391198,25606.0,25605.0,0.001]
[1693884096895,2.555998,25606.0,25605.0,0.001]
[1693884097285,2.547998,25606.0,25604.0,0.04182282]
[1693884097480,2.547998,25606.0,25604.0,0.04282282]
[1693884097643,2.547998,25606.0,25604.0,0.07050086]
[1693884098030,2.533998,25606.0,25604.0,0.07050086]
[1693884098239,0.1908,25606.0,25604.0,0.0850287]
[1693884098486,0.1558,25606.0,25604.0,0.0850287]
[1693884098699,0.1558,25606.0,25605.0,0.25122431]
[1693884098700,0.005,25606.0,25605.0,0.25122431]
[1693884098898,0.005,25606.0,25605.0,0.64136231]
[1693884099102,0.005,25606.0,25605.0,1.26293831]
[1693884099313,0.005,25606.0,25605.0,1.27055831]
[1693884099521,0.005,25606.0,25605.0,1.46335831]
[1693884099760,0.008,25606.0,25605.0,2.35109738]
[1693884099971,1.01401416,25615.0,25609.0,0.02]
[1693884100155,0.780834,25614.0,25611.0,0.1139]
[1693884100388,1.65489346,25615.0,25612.0,0.15465811]
[1693884101034,2.57563616,25615.0,25610.0,0.19523]
[1693884101246,0.09328646,25613.0,25607.0,0.724818]
[1693884101428,1.59114362,25612.0,25608.0,0.612401]
[1693884101667,1.84674362,25612.0,25609.0,0.001]
[1693884101856,1.817407,25612.0,25608.0,0.68395791]
[1693884102094,1.817407,25612.0,25608.0,0.68085139]
[1693884102321,1.817407,25612.0,25608.0,0.68395791]
[1693884102733,1.819407,25612.0,25608.0,0.612401]
[1693884102946,0.1666,25611.0,25608.0,0.587401]
[1693884103152,0.947518,25611.0,25608.0,0.611401]
[1693884103818,0.1666,25611.0,25608.0,0.587401]
[1693884104026,1.036499,25612.0,25609.0,0.1195175]
[1693884104225,0.2556,25612.0,25610.0,0.312377]
[1693884104440,0.003,25612.0,25610.0,0.624754]
[1693884104643,1.75829353,25614.0,25610.0,0.312377]
[1693884104884,1.75829353,25614.0,25610.0,0.46703511]
[1693884104885,0.780854,25613.0,25610.0,0.46703511]
[1693884105092,0.003,25611.0,25609.0,0.624764]
[1693884105301,0.002,25611.0,25608.0,0.611402]
[1693884105482,0.002,25611.0,25608.0,0.923804]
[1693884105686,0.781897,25612.0,25608.0,0.899804]
[1693884105889,1.561794,25612.0,25608.0,0.899804]
[1693884106094,0.04,25611.0,25610.0,0.011]
[1693884106317,2.73632846,25611.0,25610.0,0.011]
[1693884106518,2.73632846,25611.0,25606.0,0.312426]
[1693884106519,2.643042,25611.0,25606.0,0.312426]
[1693884106719,2.76766508,25611.0,25608.0,0.024]
[1693884106929,2.645042,25611.0,25608.0,0.024]
[1693884107340,2.805442,25611.0,25608.0,0.024]
[1693884107995,2.803442,25611.0,25608.0,0.024]
[1693884108198,2.804442,25611.0,25608.0,0.024]
[1693884108351,2.803442,25611.0,25608.0,0.024]
[1693884108563,2.803442,25611.0,25606.0,0.624852]
[1693884108768,2.83577862,25611.0,25610.0,0.011]
[1693884108975,2.807442,25611.0,25610.0,0.011]
[1693884109374,2.89972846,25611.0,25606.0,0.312426]
[1693884109533,2.92606508,25611.0,25606.0,0.312426]
[1693884109732,2.92806508,25611.0,25606.0,0.312426]
[1693884109986,2.93006508,25611.0,25606.0,0.336426]
[1693884110298,2.83677862,25611.0,25606.0,0.336426]
[1693884110451,2.807442,25611.0,25606.0,0.77019067]
[1693884111067,2.805442,25611.0,25606.0,0.74519067]
[1693884111288,2.805442,25611.0,25606.0,0.74818467]
[1693884111289,2.804448,25611.0,25606.0,0.74818467]
[1693884111949,0.041006,25611.0,25607.0,0.5707753]
[1693884112148,0.041006,25611.0,25608.0,0.624798]
[1693884112380,0.82192,25611.0,25608.0,0.624798]
[1693884112785,0.816926,25611.0,25608.0,0.312399]
[1693884112897,2.378754,25611.0,25606.0,0.293414]
[1693884113102,2.41009062,25611.0,25607.0,0.024]
[1693884113304,2.380754,25611.0,25607.0,0.024]
[1693884113516,2.378754,25611.0,25606.0,0.605831]
[1693884113725,0.1515,25610.0,25606.0,0.608825]
[1693884113933,0.932457,25610.0,25606.0,0.804085]
[1693884115003,0.932457,25610.0,25608.0,0.024]
[1693884115234,0.934457,25610.0,25608.0,0.024]
[1693884115456,0.934457,25610.0,25607.0,0.312412]
[1693884115663,0.936457,25610.0,25607.0,0.312412]
[1693884115862,0.931463,25610.0,25607.0,0.312412]
[1693884116069,0.929463,25610.0,25607.0,0.312412]
[1693884116306,0.02963698,25609.0,25607.0,0.86962019]
[1693884116531,0.02963698,25609.0,25608.0,0.10236]